bitfinex-derivatives/quotes_SOLF0:USTF0_20241005
["timestamp","ask_amount","ask_price","bid_price","bid_amount"]
[1728110449772,11.46,144.16,144.12,6.68546383]
[1728110449973,11.46,144.16,144.1,6.44]
[1728110450176,3.4694,144.13,144.11,6.68571477]
[1728110450366,3.4694,144.13,144.12,6.68571477]
[1728110450863,6.44,144.13,144.11,6.68358761]
[1728110451070,6.44,144.13,144.08,6.44]
[1728110451367,6.44,144.13,144.09,6.68151027]
[1728110451677,6.44,144.12,144.06,5.02]
[1728110451872,6.44,144.12,144.07,6.68265379]
[1728110452175,6.44,144.12,144.06,11.46]
[1728110452176,6.44,144.12,144.08,6.68265379]
[1728110452373,6.44,144.12,144.09,6.68265379]
[1728110452568,6.44,144.12,144.06,11.46]
[1728110452772,6.44,144.12,144.07,6.6825446]
[1728110452773,3.4701,144.1,144.07,6.6825446]
[1728110452972,6.44,144.12,144.08,6.6825446]
[1728110453168,5.02,144.13,144.09,6.6825446]
[1728110453169,6.44,144.11,144.09,6.6825446]
[1728110453379,6.44,144.1,144.06,6.68274642]
[1728110453578,6.44,144.11,144.07,6.68274642]
[1728110453774,6.44,144.11,144.08,6.68274642]
[1728110453983,3.47,144.1,144.09,6.68274642]
[1728110454180,3.47,144.1,144.07,6.68274642]
[1728110454471,3.4699,144.1,144.08,6.68274642]
[1728110454679,3.4699,144.1,144.09,6.68274642]
[1728110455179,3.4699,144.1,144.07,6.68274642]
[1728110455377,3.4702,144.09,144.08,6.68274642]
[1728110455578,6.44,144.11,144.08,6.68274642]
[1728110455781,6.44,144.11,144.09,6.68274642]
[1728110456075,530.0,144.27,144.09,6.44]
[1728110456271,530.0,144.27,144.05,9.21602]
[1728110456272,7.7644,144.2,144.1,6.44]
[1728110456474,6.44,144.15,144.1,13.11560294]
[1728110456674,3.4691,144.14,144.11,6.6754832]
[1728110456978,3.4691,144.14,144.1,6.44]
[1728110457178,3.4691,144.14,144.11,6.67557027]
[1728110457573,3.469,144.14,144.11,6.67557027]
[1728110460177,3.469,144.14,144.11,13.11557027]
[1728110460484,3.469,144.14,144.11,6.44]
[1728110460683,6.44,144.14,144.11,6.67557027]
[1728110460981,6.44,144.14,144.1,6.44]
[1728110461276,6.44,144.14,144.1,13.11557027]
[1728110461486,6.44,144.14,144.1,6.67557027]
[1728110461784,6.44,144.13,144.1,6.67557027]
[1728110461982,3.4701,144.1,144.07,6.44]
[1728110462185,6.44,144.11,144.08,6.67557027]
[1728110462375,3.4702,144.09,144.08,6.67557027]
[1728110462681,3.4702,144.09,144.06,11.46]
[1728110462874,3.4702,144.09,144.07,6.67167218]
[1728110465581,9.99,144.13,144.07,6.67167218]
[1728110465779,15.01,144.14,144.07,6.67167218]
[1728110466184,15.01,144.14,144.08,6.67167218]
[1728110466185,3.4696,144.12,144.08,6.67167218]
[1728110466380,3.4696,144.12,144.07,3.4705]
[1728110466585,3.4696,144.12,144.08,6.66784882]
[1728110466785,3.4696,144.12,144.08,3.4704]
[1728110466990,3.4696,144.12,144.08,10.13824882]
[1728110467294,3.4696,144.12,144.07,6.66784882]
[1728110467589,3.4696,144.12,144.08,6.66784882]
[1728110467789,3.4697,144.11,144.07,6.66784882]
[1728110467988,3.4697,144.11,144.08,6.66784882]
[1728110468293,3.4697,144.11,144.07,6.66784882]
[1728110468589,3.4697,144.11,144.08,6.66784882]
[1728110468784,3.4697,144.11,144.07,6.66784882]
[1728110469590,3.4697,144.11,144.08,6.66784882]
[1728110469790,3.4697,144.11,144.07,6.66784882]
[1728110469989,0.12502,144.17,144.08,6.66784882]
[1728110470186,0.12502,144.17,144.08,3.4703]
[1728110470187,15.17,144.16,144.08,3.4703]
[1728110470385,15.17,144.16,144.08,10.13814882]
[1728110470580,15.17,144.16,144.08,3.4703]
[1728110470991,15.17,144.16,144.08,10.13102178]
[1728110471191,3.4694,144.13,144.08,10.13102178]
[1728110471397,15.17,144.16,144.08,10.13102178]
[1728110471888,15.17,144.16,144.08,6.66072178]
[1728110472598,9.99,144.14,144.08,6.66072178]
[1728110472794,9.99,144.14,144.06,11.84072178]
[1728110473104,9.99,144.11,144.06,6.66072178]
[1728110473492,3.4706,144.08,144.06,6.66072178]
[1728110473890,3.4706,144.08,144.05,2.81652]
[1728110474096,9.99,144.09,144.06,6.6655358]
[1728110474299,9.99,144.09,144.05,0.12502]
[1728110474495,15.17,144.09,144.05,0.12502]
[1728110474895,15.17,144.09,144.05,6.7905558]
[1728110475095,15.17,144.09,144.05,0.12502]
[1728110475601,15.17,144.09,144.05,6.7905558]
[1728110475790,15.17,144.09,144.05,0.12502]
[1728110475997,3.4709,144.06,144.05,0.12502]
[1728110476198,3.4709,144.06,144.05,6.7905558]
[1728110476397,3.4709,144.06,144.05,0.12502]
[1728110476699,15.17,144.13,144.05,6.7905558]
[1728110476897,15.17,144.13,144.06,6.6655358]
[1728110477098,18.58186675,144.13,144.06,6.6655358]
[1728110477500,15.17,144.13,144.05,0.12502]
[1728110477696,15.17,144.13,144.07,6.66724257]
[1728110478002,15.17,144.13,144.06,6.66724257]
[1728110478003,3.4701,144.1,144.06,6.66724257]
[1728110478196,3.4701,144.1,144.07,6.66724257]
[1728110478496,3.4701,144.1,144.06,6.66724257]
[1728110478706,3.4704,144.08,144.07,6.66724257]
[1728110478893,3.4704,144.08,144.06,6.66724257]
[1728110479601,3.4703,144.09,144.06,6.66724257]
[1728110480205,3.4703,144.09,144.07,6.66724257]
[1728110480501,3.4703,144.09,144.06,6.66724257]
[1728110480697,3.4703,144.09,144.07,6.66724257]
[1728110480907,9.99,144.11,144.06,6.66724257]
[1728110481097,3.4705,144.08,144.06,6.66724257]
[1728110481299,3.4705,144.08,144.07,6.66724257]
[1728110481601,3.4705,144.08,144.06,6.66724257]
[1728110481809,3.4705,144.08,144.07,6.66724257]
[1728110482102,3.4705,144.08,144.06,6.66724257]
[1728110482302,3.4705,144.08,144.07,6.66724257]
[1728110482498,3.4705,144.08,144.05,0.12502]
[1728110482499,3.4705,144.08,144.06,6.66724257]
[1728110482706,3.4702,144.09,144.07,6.66724257]
[1728110482904,3.4702,144.09,144.06,6.66724257]
[1728110483103,3.47,144.1,144.07,6.66724257]
[1728110483306,9.99,144.11,144.06,6.66724257]
[1728110483604,9.99,144.11,144.07,6.66724257]
[1728110483805,3.4702,144.1,144.06,6.66724257]
[1728110483999,3.4702,144.1,144.07,6.66724257]
[1728110484201,3.4702,144.1,144.06,6.66724257]
[1728110484402,3.4702,144.1,144.07,6.66724257]
[1728110484604,3.4702,144.1,144.05,3.59612]
[1728110484805,3.4702,144.1,144.06,6.67251102]
[1728110485005,3.4702,144.1,144.07,6.67251102]
[1728110485205,3.4702,144.1,144.06,6.67251102]
[1728110485406,3.4702,144.1,144.07,6.67251102]
[1728110485710,3.4693,144.13,144.08,10.14291102]
[1728110486007,3.4693,144.13,144.09,6.67251102]
[1728110486509,3.469,144.14,144.1,5.18]
[1728110486711,3.469,144.14,144.1,11.85251102]
[1728110486910,3.469,144.14,144.1,5.18]
[1728110487311,3.469,144.14,144.09,10.14251102]
[1728110487514,3.469,144.14,144.1,6.67251102]
[1728110487515,3.4697,144.11,144.1,6.67251102]
[1728110488108,3.4697,144.11,144.09,6.67251102]
[1728110488411,3.4697,144.11,144.1,6.67251102]
[1728110488610,3.4693,144.13,144.09,6.67251102]
[1728110488913,9.99,144.14,144.09,6.67251102]
[1728110489208,3.4699,144.11,144.09,6.67251102]
[1728110489412,3.4699,144.11,144.07,6.67251102]
[1728110489712,3.4699,144.11,144.08,6.67251102]
[1728110489917,3.4699,144.11,144.06,9.3106]
[1728110489918,3.4699,144.11,144.07,6.67251102]
[1728110490215,3.4699,144.11,144.08,6.67251102]
[1728110490415,3.4699,144.11,144.09,6.67251102]
[1728110490616,3.4699,144.11,144.07,6.67251102]
[1728110490911,3.4699,144.11,144.08,6.67251102]
[1728110491111,3.4699,144.11,144.09,6.67429426]
[1728110491412,3.4699,144.11,144.07,6.67429426]
[1728110491609,3.4695,144.12,144.08,6.67429426]
[1728110491809,3.4695,144.12,144.07,3.4706]
[1728110492211,3.4695,144.12,144.08,6.67432263]
[1728110492407,3.4695,144.12,144.09,6.67432263]
[1728110492608,3.4695,144.12,144.08,6.67432263]
[1728110492809,3.4695,144.12,144.09,6.67432263]
[1728110493011,3.4695,144.12,144.08,6.67432263]
[1728110493303,3.4695,144.12,144.09,6.67432263]
[1728110493513,3.4695,144.12,144.07,3.4706]
[1728110493709,3.4695,144.12,144.08,6.67497947]
[1728110493905,3.4695,144.12,144.09,6.67497947]
[1728110494115,3.4695,144.12,144.07,3.4706]
[1728110494309,3.4695,144.12,144.08,6.67574865]
[1728110494508,3.4695,144.12,144.09,6.67574865]
[1728110494714,3.4695,144.12,144.07,3.4706]
[1728110494919,3.4695,144.12,144.08,6.67559186]
[1728110495121,3.4695,144.12,144.07,3.4706]
[1728110495309,3.4695,144.12,144.08,6.67611456]
[1728110495616,3.4695,144.12,144.09,6.67611456]
[1728110495913,3.4695,144.12,144.08,3.4704]
[1728110496217,3.4695,144.12,144.09,6.67638117]
[1728110496518,3.4695,144.12,144.08,3.4704]
[1728110496719,3.4695,144.12,144.09,6.67719906]
[1728110497016,3.4695,144.12,144.08,3.4704]
[1728110497212,3.4695,144.12,144.09,6.67812093]
[1728110497414,3.4695,144.12,144.1,6.67812093]
[1728110497612,3.4695,144.12,144.09,6.67812093]
[1728110497813,3.4695,144.12,144.08,5.2]
[1728110498021,3.4695,144.12,144.09,6.6781004]
[1728110498210,3.4695,144.12,144.1,6.6781004]
[1728110498412,3.4695,144.12,144.08,5.2]
[1728110498718,3.4695,144.12,144.09,6.68022234]
[1728110499020,3.4695,144.12,144.1,6.68022234]
[1728110499212,3.4695,144.12,144.08,5.2]
[1728110499411,3.4695,144.12,144.09,6.68268385]
[1728110499712,3.4697,144.11,144.1,6.68268385]
[1728110502611,3.4697,144.11,144.1,6.68974464]
[1728110503016,3.4697,144.11,144.06,12.8015]
[1728110503211,3.4697,144.11,144.1,6.68976296]
[1728110503615,9.8597,144.11,144.1,6.68976296]
[1728110505622,6.39,144.11,144.05,0.12502]
[1728110505819,6.39,144.06,144.05,0.12502]
[1728110508620,9.8609,144.06,144.05,0.12502]
[1728110515022,15.0609,144.06,144.05,0.12502]
[1728110515927,3.4717,144.03,143.99,0.12502]
[1728110516134,6.39,144.02,143.99,0.12502]
[1728110517325,9.8619,144.02,143.99,0.12502]
[1728110517627,9.8619,144.02,144.0,6.62534102]
[1728110517832,9.8619,144.02,144.01,6.62534102]
[1728110521732,6.39,144.02,144.01,6.62534102]
[1728110521931,6.39,144.03,144.01,6.62534102]
[1728110522132,6.39,144.03,144.02,6.62534102]
[1728110523029,6.39,144.03,144.02,6.61975802]
[1728110523537,3.4703,144.09,144.02,10.09072406]
[1728110523741,6.39,144.06,144.03,6.61882406]
[1728110523937,6.39,144.07,144.04,6.61882406]
[1728110524235,6.39,144.07,144.05,6.61882406]
[1728110524539,6.39,144.07,144.06,6.61882406]
[1728110525140,9.8607,144.07,144.06,6.61882406]
[1728110526137,3.4714,144.04,144.02,1.3498]
[1728110526338,6.39,144.03,144.02,1.3498]
[1728110526541,6.39,144.03,143.99,5.32502]
[1728110526737,6.39,144.03,143.99,11.71502]
[1728110526937,6.39,144.03,143.99,15.18752]
[1728110528244,9.8617,144.03,143.99,15.18752]
[1728110528446,9.8617,144.03,143.99,8.79752]
[1728110528447,6.39,144.02,143.99,8.79752]
[1728110528844,9.8619,144.02,143.99,5.32502]
[1728110529542,3.4719,144.02,143.99,5.32502]
[1728110529941,3.4719,144.02,143.99,0.12502]
[1728110533243,10.0,144.04,143.99,0.12502]
[1728110534444,3.472,144.02,143.99,0.12502]
[1728110535352,3.4723,144.01,143.99,0.12502]
[1728110538248,3.4723,144.01,144.0,6.53402416]
[1728110540546,3.4723,144.01,144.0,6.5347853]
[1728110541049,3.472,144.02,144.0,6.5347853]
[1728110541249,3.472,144.02,144.01,6.5347853]
[1728110543450,3.4717,144.03,144.01,6.5347853]
[1728110543650,3.4717,144.03,144.02,6.5347853]
[1728110543957,3.4717,144.03,143.99,0.12502]
[1728110544255,3.4717,144.03,144.0,6.53502701]
[1728110544448,3.4717,144.03,143.99,0.12502]
[1728110544648,3.4717,144.03,144.0,6.53622867]
[1728110544853,3.4717,144.03,144.01,6.53622867]
[1728110545048,3.4717,144.03,144.02,6.53622867]
[1728110548457,10.0,144.04,144.02,6.53622867]
[1728110548758,13.4715,144.04,144.03,6.53622867]
[1728110550554,13.4715,144.04,143.99,3.59742]
[1728110550951,13.4715,144.04,144.0,6.5387418]
[1728110551255,13.4715,144.04,144.01,6.5387418]
[1728110551455,13.4715,144.04,143.99,3.59742]
[1728110551456,13.4715,144.04,144.02,6.5387418]
[1728110551652,6.4,144.03,143.99,3.59742]
[1728110551855,6.4,144.03,144.0,6.53869102]
[1728110552058,6.4,144.03,143.99,3.59742]
[1728110552059,6.4,144.03,144.01,6.53869102]
[1728110552366,9.8708,144.07,144.02,16.41049102]
[1728110552555,6.4,144.07,144.03,6.53869102]
[1728110552759,6.4,144.07,144.04,6.53869102]
[1728110553057,6.4,144.07,144.05,6.53869102]
[1728110553258,6.4,144.07,144.06,6.53869102]
[1728110554058,9.8708,144.07,144.06,6.53763897]
[1728110554368,9.8708,144.07,144.02,9.8718]
[1728110554556,9.8708,144.07,144.06,6.53773776]
[1728110556249,5.04,144.08,144.06,6.53773776]
[1728110556450,3.4704,144.09,144.07,6.53773776]
[1728110556662,6.4,144.08,144.04,3.4714]
[1728110556858,6.4,144.08,144.05,6.53527975]
[1728110557059,6.4,144.08,144.04,3.4714]
[1728110557060,6.4,144.08,144.06,6.53527975]
[1728110557254,6.4,144.08,144.07,6.53527975]
[1728110557454,6.4,144.08,144.04,3.4714]
[1728110557656,3.4704,144.09,144.05,6.53598327]
[1728110557856,3.4704,144.09,144.06,6.53598327]
[1728110558055,6.4,144.08,144.07,6.53598327]
[1728110558254,304.96,144.19,144.07,12.93598327]
[1728110558454,6.4,144.14,144.09,6.4]
[1728110558655,304.96,144.19,144.1,6.53598327]
[1728110558857,2.7608,144.2,144.1,12.93598327]
[1728110559061,6.4,144.16,144.11,6.4]
[1728110559360,6.4,144.16,144.13,3.4692]
[1728110560264,6.4,144.16,144.12,5.04]
[1728110560463,6.4,144.16,144.14,3.4689]
[1728110561363,5.04,144.19,144.14,3.4689]
[1728110561567,6.4,144.16,144.14,3.4689]
[1728110563053,5.04,144.19,144.15,3.4687]
[1728110563259,87.85486564,144.17,144.15,3.4687]
[1728110566270,0.12502,144.17,144.14,11.44]
[1728110566566,0.12502,144.17,144.16,3.4685]
[1728110569459,0.02,144.22,144.14,11.44]
[1728110569662,0.02,144.22,144.2,3.4673]
[1728110569874,6.42,144.22,144.2,3.4673]
[1728110570062,6.42,144.22,144.18,5.04]
[1728110570262,6.4,144.21,144.18,5.04]
[1728110571268,6.4,144.21,144.2,3.4675]
[1728110571466,6.42,144.22,144.18,5.04]
[1728110572362,6.42,144.22,144.21,3.4673]
[1728110580177,0.02,144.22,144.21,3.4673]
[1728110592482,0.12502,144.23,144.22,3.467]
[1728110592682,6.31755727,144.25,144.22,6.4]
[1728110592988,6.31755727,144.25,144.23,5.02]
[1728110593186,6.31755727,144.25,144.24,3.4666]
[1728110594182,12.71755727,144.25,144.24,3.4666]
[1728110600893,6.31755727,144.25,144.24,3.4666]
[1728110603699,6.31755727,144.25,144.24,14.8866]
[1728110604296,6.31755727,144.25,144.24,8.4866]
[1728110605194,4.16175727,144.25,144.24,14.8866]
[1728110608700,4.16175727,144.25,144.24,3.4666]
[1728110614203,4.16175727,144.25,144.22,5.02]
[1728110615708,4.16175727,144.25,144.23,3.4668]
[1728110616204,6.4,144.24,144.2,3.4674]
[1728110616408,6.4,144.23,144.19,14.1589]
[1728110617111,6.4,144.23,144.19,7.7589]
[1728110617309,6.4,144.22,144.18,6.4]
[1728110617504,6.4,144.22,144.18,11.4]
[1728110617709,6.4,144.22,144.21,3.4673]
[1728110617904,6.4,144.22,144.18,5.0]
[1728110618205,6.4,144.22,144.2,3.4673]
[1728110618502,6.4,144.21,144.15,4.109]
[1728110618711,3.38576964,144.22,144.17,3.59312]
[1728110618903,6.4,144.19,144.17,3.59312]
[1728110620108,6.4,144.18,144.17,0.12502]
[1728110621410,6.4,144.18,144.11,5.14502]
[1728110621611,6.4,144.14,144.11,5.14502]
[1728110622107,6.4,144.14,144.11,0.12502]
[1728110623409,6.4,144.14,144.13,3.4692]
[1728110625210,4.811,144.19,144.15,3.4685]
[1728110625411,6.4,144.17,144.15,3.4685]
[1728110626111,6.4,144.16,144.15,3.4685]
[1728110628210,6.4,144.17,144.15,3.4685]
[1728110628607,6.4,144.17,144.11,0.12502]
[1728110628809,6.4,144.14,144.12,3.4692]
[1728110629014,6.4,144.14,144.11,0.12502]
[1728110629912,6.4,144.14,144.11,6.52502]
[1728110630113,6.4,144.14,144.13,3.4692]
[1728110631317,6.4,144.16,144.14,3.4688]
[1728110633213,6.4,144.15,144.13,3.4691]
[1728110634917,5.02,144.17,144.14,3.469]
[1728110635120,6.4,144.15,144.14,3.469]
[1728110636818,1.5518,144.17,144.11,6.52502]
[1728110637116,6.4,144.16,144.11,6.52502]
[1728110637619,6.4,144.16,144.14,3.4688]
[1728110641722,3.4682,144.18,144.14,3.4688]
[1728110642020,6.4,144.15,144.14,3.4688]
[1728110644923,6.4,144.15,144.13,3.4691]
[1728110645627,6.4,144.14,144.11,0.12502]
[1728110645923,6.4,144.13,144.11,3.59452]
[1728110646626,6.4,144.13,144.11,3.59462]
[1728110649030,6.4,144.12,144.11,3.59462]
[1728110651821,6.4,144.12,144.11,0.12502]
[1728110652134,9.8695,144.12,144.11,0.12502]
[1728110653524,6.4,144.12,144.11,0.12502]
[1728110655421,9.8695,144.12,144.11,0.12502]
[1728110656233,6.4,144.13,144.11,0.12502]
[1728110658125,6.4,144.13,144.11,3.59462]
[1728110658834,6.4,144.12,144.11,0.12502]
[1728110663230,6.4,144.12,144.11,3.59472]
[1728110664131,6.4,144.12,144.11,0.12502]
[1728110667332,6.4,144.12,144.05,4.15142]
[1728110667333,3.4702,144.09,144.05,3.59592]
[1728110667539,6.4,144.06,144.05,0.12502]
[1728110672048,9.8709,144.06,144.05,0.12502]
[1728110672245,6.4,144.06,143.99,0.12502]
[1728110672542,5.0,144.07,143.99,3.59742]
[1728110672543,6.4,144.02,143.99,3.59742]
[1728110673248,6.4,144.02,144.0,3.4723]
[1728110674550,6.4,144.02,143.99,0.12502]
[1728110674741,3.4717,144.03,143.99,0.12502]
[1728110674946,6.4,144.0,143.99,0.12502]
[1728110675543,6.4,144.0,143.99,3.59742]
[1728110675945,6.4,144.01,143.99,0.12502]
[1728110676148,6.4,144.01,144.0,3.4723]
[1728110677758,3.4712,144.05,144.01,3.472]
[1728110677960,6.4,144.04,144.0,6.4]
[1728110678156,4.96,144.06,144.01,6.4]
[1728110678462,11.36,144.06,144.03,3.4715]
[1728110680254,6.4,144.06,144.03,3.4715]
[1728110683463,4.96,144.07,144.01,6.4]
[1728110683661,4.96,144.07,144.04,3.4712]
[1728110683662,6.4,144.06,144.04,3.4712]
[1728110685061,81.48944268,144.11,144.05,3.4711]
[1728110685062,3.4703,144.09,144.05,3.4711]
[1728110685260,81.48944268,144.11,144.04,6.4]
[1728110685466,6.4,144.09,144.05,6.4]
[1728110685766,0.12502,144.11,144.07,6.4]
[1728110686866,0.12502,144.11,144.09,3.47]
[1728110694675,6.52502,144.11,144.09,3.47]
[1728110710071,0.12502,144.11,144.1,3.4699]
[1728110710275,0.12502,144.11,144.1,9.8699]
[1728110711285,0.12502,144.11,144.1,3.4699]
[1728110721280,9.99472,144.11,144.08,3.4703]
[1728110721480,6.4,144.09,144.08,3.4703]
[1728110721680,6.52502,144.11,144.07,6.4]
[1728110721885,0.12502,144.11,144.08,6.4]
[1728110722285,0.12502,144.11,144.09,3.47]
[1728110727796,0.12502,144.11,144.07,6.4]
[1728110727989,0.12502,144.11,144.1,3.4699]
[1728110730594,0.12502,144.11,144.1,9.8699]
[1728110730888,9.8686,144.16,144.12,3.4693]
[1728110731199,9.8686,144.16,144.12,6.4]
[1728110731387,0.12502,144.17,144.12,6.4]
[1728110731588,9.99332,144.17,144.12,6.4]
[1728110732087,0.12502,144.17,144.13,6.4]
[1728110732285,0.12502,144.17,144.14,6.4]
[1728110732592,0.12502,144.17,144.16,9.8685]
[1728110732791,81.42205133,144.23,144.16,6.4]
[1728110732985,9.8671,144.22,144.17,6.4]
[1728110733182,9.8671,144.22,144.17,11.3]
[1728110734081,6.4,144.21,144.18,3.4679]
[1728110737400,6.4,144.21,144.17,4.9]
[1728110737699,0.12502,144.23,144.17,4.9]
[1728110737700,6.4,144.2,144.17,4.9]
[1728110738599,9.8682,144.18,144.14,8.3489]
[1728110739397,9.8682,144.18,144.14,4.88]
[1728110739598,9.8682,144.18,144.14,11.28]
[1728110740803,6.4,144.19,144.15,6.4]
[1728110741205,9.8677,144.2,144.16,3.4683]
[1728110743305,9.8677,144.2,144.17,3.4682]
[1728110748414,3.468,144.18,144.15,3.4686]
[1728110748620,0.12502,144.23,144.17,6.4]
[1728110748820,6.52502,144.23,144.19,6.4]
[1728110749115,6.52502,144.23,144.2,3.4675]
[1728110749925,0.12502,144.23,144.2,3.4675]
[1728110750119,6.52502,144.23,144.2,3.4675]
[1728110750719,0.12502,144.23,144.21,3.4672]
[1728110751118,0.12502,144.23,144.2,4.86]
[1728110751317,0.76175728,144.25,144.24,3.4666]
[1728110751513,21.31420114,144.32,144.24,14.79053947]
[1728110751718,21.31420114,144.32,144.27,6.4]
[1728110752022,6.4,144.31,144.25,6.4]
[1728110752727,9.8649,144.31,144.26,3.4659]
[1728110753024,22.30819982,144.3,144.24,4.86]
[1728110753221,22.30819982,144.3,144.24,11.26]
[1728110753627,25.77339982,144.3,144.25,9.8662]
[1728110753815,22.30819982,144.3,144.25,6.4]
[1728110754630,15.90819982,144.3,144.25,6.4]
[1728110755229,15.90819982,144.3,144.26,3.4659]
[1728110755422,22.30819982,144.3,144.26,3.4659]
[1728110757728,15.90819982,144.3,144.26,3.4659]
[1728110757923,15.90819982,144.3,144.26,9.8659]
[1728110759324,15.90819982,144.3,144.28,9.8656]
[1728110759734,15.90819982,144.3,144.28,14.7256]
[1728110759929,15.90819982,144.3,144.28,8.3256]
[1728110760135,15.90819982,144.3,144.28,14.7256]
[1728110760429,25.77339982,144.3,144.26,8.326]
[1728110760830,25.77339982,144.3,144.27,3.4658]
[1728110761222,22.30819982,144.3,144.27,3.4658]
[1728110761631,15.90819982,144.3,144.27,3.4658]
[1728110764437,22.30819982,144.3,144.27,3.4658]
[1728110764634,25.77339982,144.3,144.27,3.4658]
[1728110764842,25.77339982,144.3,144.26,14.726]
[1728110766629,25.77339982,144.3,144.22,2.757]
[1728110766630,22.30819982,144.3,144.22,2.757]
[1728110766829,22.30819982,144.3,144.26,6.4]
[1728110767341,25.77339982,144.3,144.26,9.8659]
[1728110768627,25.77339982,144.3,144.27,6.4]
[1728110770334,6.4,144.28,144.23,3.4667]
[1728110770545,6.4,144.27,144.23,9.8667]
[1728110770841,3.4662,144.26,144.23,3.4667]
[1728110771032,6.4,144.27,144.22,6.4]
[1728110771737,3.4665,144.25,144.22,6.4]
[1728110774239,3.4665,144.25,144.22,9.867]
[1728110774540,3.4661,144.26,144.22,6.4]
[1728110774734,1.301,144.28,144.25,6.4]
[1728110775149,4.7667,144.28,144.25,6.4]
[1728110775347,25.79320369,144.29,144.27,6.4]
[1728110775348,13.07730369,144.29,144.27,6.4]
[1728110775536,13.07730369,144.29,144.23,5.0]
[1728110775838,13.07730369,144.29,144.25,6.4]
[1728110776451,16.54270369,144.29,144.25,9.8661]
[1728110776751,11.69040369,144.29,144.26,6.4]
[1728110779044,11.69040369,144.29,144.27,3.4657]
[1728110779741,11.69040369,144.29,144.27,6.4]
[1728110779940,11.69040369,144.29,144.28,9.8656]
[1728110782952,11.69040369,144.29,144.26,8.466]
[1728110783154,11.69040369,144.29,144.27,6.4]
[1728110783949,11.69040369,144.29,144.27,9.8658]
[1728110785049,11.69040369,144.29,144.26,8.4659]
[1728110786654,11.69040369,144.29,144.27,3.4658]
[1728110786858,15.15580369,144.29,144.26,5.0]
[1728110787753,11.69040369,144.29,144.26,8.4659]
[1728110788253,6.4,144.28,144.24,3.4665]
[1728110788852,6.4,144.27,144.22,5.0]
[1728110789049,6.4,144.27,144.23,3.4668]
[1728110789357,9.8659,144.27,144.23,3.4668]
[1728110791359,3.4661,144.26,144.23,3.4668]
[1728110791559,6.4,144.27,144.24,3.4665]
[1728110793063,9.8659,144.27,144.24,3.4665]
[1728110801875,9.8659,144.27,144.23,9.8667]
[1728110802371,3.4659,144.27,144.23,6.4]
[1728110803168,3.4662,144.26,144.23,9.8667]
[1728110803471,1.3601,144.28,144.24,6.4]
[1728110803674,4.8258,144.28,144.25,3.4662]
[1728110805861,1.3601,144.28,144.26,3.4661]
[1728110806873,4.8257,144.28,144.25,3.4663]
[1728110807075,18.09040369,144.29,144.24,6.4]
[1728110807472,11.69040369,144.29,144.24,6.4]
[1728110807771,11.69040369,144.29,144.19,2.7071]
[1728110807772,11.69040369,144.29,144.27,3.4657]
[1728110811377,3.4657,144.28,144.25,8.4463]
[1728110818480,3.4657,144.28,144.19,2.7071]
[1728110818481,6.4,144.26,144.22,11.38]
[1728110818876,6.4,144.26,144.23,3.4666]
[1728110819783,6.4,144.26,144.24,3.4666]
[1728110821791,9.866,144.27,144.24,3.4666]
[1728110822480,6.4,144.27,144.23,6.4]
[1728110822680,23.07040369,144.29,144.24,6.4]
[1728110823386,26.53600369,144.29,144.26,3.4661]
[1728110825386,11.69040369,144.29,144.25,6.4]